{"text_format":"1","workbook":"xlsx","n_sheets":4,"sheets":["Playoff Predictor","Game Simulator","Standings","Help"],"not_rendered":{"charts":0,"images":198,"macros":1,"external_links":0,"defined_names":0,"comments":0,"pivot_tables":0},"unopened":[],"bounds":{"document_bytes":16777216,"sheet_cells":100000,"rows_first":2000,"rows_last":500,"rows_between":2000,"halvings":0,"cell_chars":16384,"cell_head_chars":4096},"cells_cut":0,"cells_raw":0,"read":"whole","date_system":"1900"}

{"sheet":"Playoff Predictor","index":0,"n_rows":27,"n_cols":34,"rows_kept":27,"cut":false,"hidden":false,"merged":[[15,10,15,13],[17,10,17,13],[13,29,13,32],[15,33,15,36],[3,1,3,4],[3,6,3,9],[6,10,6,13],[10,21,10,24],[13,22,13,25],[10,14,10,17],[8,10,8,13],[10,29,10,32],[13,14,13,17],[17,33,17,36],[8,33,8,36],[6,33,6,36]]}
[]
[]
[]
[null,"National Football Confrence",null,null,null,null,"American Football Confrence"]
[null,"NFC East","Win","Loss","Tie",null,"AFC East","Win","Loss","Tie"]
[null,"Dallas Cowboys",{"$f":"VLOOKUP(B6,Standings!$A$3:$D$34,2)","v":11},{"$f":"VLOOKUP(B6,Standings!$A$3:$D$34,3)","v":1},{"$f":"VLOOKUP(B6,Standings!$A$3:$D$34,4)","v":0},null,"New England Patriots",{"$f":"VLOOKUP(G6,Standings!$A$3:$D$34,2)","v":10},{"$f":"VLOOKUP(G6,Standings!$A$3:$D$34,3)","v":2},{"$f":"VLOOKUP(G6,Standings!$A$3:$D$34,4)","v":0}]
[null,"New York Giants",{"$f":"VLOOKUP(B7,Standings!$A$3:$D$34,2)","v":8},{"$f":"VLOOKUP(B7,Standings!$A$3:$D$34,3)","v":4},{"$f":"VLOOKUP(B7,Standings!$A$3:$D$34,4)","v":0},null,"Miami Dolphins",{"$f":"VLOOKUP(G7,Standings!$A$3:$D$34,2)","v":7},{"$f":"VLOOKUP(G7,Standings!$A$3:$D$34,3)","v":5},{"$f":"VLOOKUP(G7,Standings!$A$3:$D$34,4)","v":0},{"$f":"Standings!F28","v":"Atlanta Falcons"},null,null,null,4,null,null,null,null,null,null,null,null,null,null,null,null,null,null,null,null,null,4,{"$f":"Standings!K28","v":"Houston Texans"}]
[null,"Washington Redskins",{"$f":"VLOOKUP(B8,Standings!$A$3:$D$34,2)","v":6},{"$f":"VLOOKUP(B8,Standings!$A$3:$D$34,3)","v":5},{"$f":"VLOOKUP(B8,Standings!$A$3:$D$34,4)","v":1},null,"Buffalo Bills",{"$f":"VLOOKUP(G8,Standings!$A$3:$D$34,2)","v":6},{"$f":"VLOOKUP(G8,Standings!$A$3:$D$34,3)","v":6},{"$f":"VLOOKUP(G8,Standings!$A$3:$D$34,4)","v":0}]
[null,"Philadelphia Eagles",{"$f":"VLOOKUP(B9,Standings!$A$3:$D$34,2)","v":5},{"$f":"VLOOKUP(B9,Standings!$A$3:$D$34,3)","v":7},{"$f":"VLOOKUP(B9,Standings!$A$3:$D$34,4)","v":0},null,"New York Jets",{"$f":"VLOOKUP(G9,Standings!$A$3:$D$34,2)","v":3},{"$f":"VLOOKUP(G9,Standings!$A$3:$D$34,3)","v":9},{"$f":"VLOOKUP(G9,Standings!$A$3:$D$34,4)","v":0},{"$f":"Standings!F29","v":"New York Giants"},null,null,null,5,null,null,null,null,null,null,null,null,null,null,null,null,null,null,null,null,null,5,{"$f":"Standings!K29","v":"Kansas City Chiefs"}]
[]
[null,"NFC North","Win","Loss","Tie",null,"AFC North","Win","Loss","Tie",null,null,null,null,{"$f":"Standings!F25","v":"Dallas Cowboys"},null,null,null,1,null,null,null,null,null,null,null,null,null,1,{"$f":"Standings!K25","v":"New England Patriots"}]
[null,"Detroit Lions",{"$f":"VLOOKUP(B12,Standings!$A$3:$D$34,2)","v":8},{"$f":"VLOOKUP(B12,Standings!$A$3:$D$34,3)","v":4},{"$f":"VLOOKUP(B12,Standings!$A$3:$D$34,4)","v":0},null,"Baltimore Ravens",{"$f":"VLOOKUP(G12,Standings!$A$3:$D$34,2)","v":7},{"$f":"VLOOKUP(G12,Standings!$A$3:$D$34,3)","v":5},{"$f":"VLOOKUP(G12,Standings!$A$3:$D$34,4)","v":0}]
[null,"Green Bay Packers",{"$f":"VLOOKUP(B13,Standings!$A$3:$D$34,2)","v":6},{"$f":"VLOOKUP(B13,Standings!$A$3:$D$34,3)","v":6},{"$f":"VLOOKUP(B13,Standings!$A$3:$D$34,4)","v":0},null,"Pittsburg Steelers",{"$f":"VLOOKUP(G13,Standings!$A$3:$D$34,2)","v":5},{"$f":"VLOOKUP(G13,Standings!$A$3:$D$34,3)","v":7},{"$f":"VLOOKUP(G13,Standings!$A$3:$D$34,4)","v":0}]
[null,"Minnesota Vikings",{"$f":"VLOOKUP(B14,Standings!$A$3:$D$34,2)","v":6},{"$f":"VLOOKUP(B14,Standings!$A$3:$D$34,3)","v":6},{"$f":"VLOOKUP(B14,Standings!$A$3:$D$34,4)","v":0},null,"Cinncinatti Bengals",{"$f":"VLOOKUP(G14,Standings!$A$3:$D$34,2)","v":4},{"$f":"VLOOKUP(G14,Standings!$A$3:$D$34,3)","v":7},{"$f":"VLOOKUP(G14,Standings!$A$3:$D$34,4)","v":1},null,null,null,null,{"$f":"Standings!F26","v":"Seattle Seahawks"},null,null,null,2,null,null,null,null,null,null,null,null,null,2,{"$f":"Standings!K26","v":"Oakland Raiders"}]
[null,"Chicago Bears",{"$f":"VLOOKUP(B15,Standings!$A$3:$D$34,2)","v":3},{"$f":"VLOOKUP(B15,Standings!$A$3:$D$34,3)","v":9},{"$f":"VLOOKUP(B15,Standings!$A$3:$D$34,4)","v":0},null,"Cleveland Browns",{"$f":"VLOOKUP(G15,Standings!$A$3:$D$34,2)","v":0},{"$f":"VLOOKUP(G15,Standings!$A$3:$D$34,3)","v":12},{"$f":"VLOOKUP(G15,Standings!$A$3:$D$34,4)","v":0}]
[null,null,null,null,null,null,null,null,null,null,{"$f":"Standings!F27","v":"Detroit Lions"},null,null,null,3,null,null,null,null,null,null,null,null,null,null,null,null,null,null,null,null,null,3,{"$f":"Standings!K27","v":"Baltimore Ravens"}]
[null,"NFC South","Win","Loss","Tie",null,"AFC South","Win","Loss","Tie"]
[null,"Atlanta Falcons",{"$f":"VLOOKUP(B18,Standings!$A$3:$D$34,2)","v":7},{"$f":"VLOOKUP(B18,Standings!$A$3:$D$34,3)","v":5},{"$f":"VLOOKUP(B18,Standings!$A$3:$D$34,4)","v":0},null,"Houston Texans",{"$f":"VLOOKUP(G18,Standings!$A$3:$D$34,2)","v":6},{"$f":"VLOOKUP(G18,Standings!$A$3:$D$34,3)","v":6},{"$f":"VLOOKUP(G18,Standings!$A$3:$D$34,4)","v":0},{"$f":"Standings!F30","v":"Tampa Bay Buccaneers"},null,null,null,6,null,null,null,null,null,null,null,null,null,null,null,null,null,null,null,null,null,6,{"$f":"Standings!K30","v":"Denver Broncos"}]
[null,"Tampa Bay Buccaneers",{"$f":"VLOOKUP(B19,Standings!$A$3:$D$34,2)","v":7},{"$f":"VLOOKUP(B19,Standings!$A$3:$D$34,3)","v":5},{"$f":"VLOOKUP(B19,Standings!$A$3:$D$34,4)","v":0},null,"Indianapolis Colts",{"$f":"VLOOKUP(G19,Standings!$A$3:$D$34,2)","v":6},{"$f":"VLOOKUP(G19,Standings!$A$3:$D$34,3)","v":6},{"$f":"VLOOKUP(G19,Standings!$A$3:$D$34,4)","v":0}]
[null,"New Orleans Saints",{"$f":"VLOOKUP(B20,Standings!$A$3:$D$34,2)","v":5},{"$f":"VLOOKUP(B20,Standings!$A$3:$D$34,3)","v":7},{"$f":"VLOOKUP(B20,Standings!$A$3:$D$34,4)","v":0},null,"Tennessee Titans",{"$f":"VLOOKUP(G20,Standings!$A$3:$D$34,2)","v":6},{"$f":"VLOOKUP(G20,Standings!$A$3:$D$34,3)","v":6},{"$f":"VLOOKUP(G20,Standings!$A$3:$D$34,4)","v":0}]
[null,"Carolina Panthers",{"$f":"VLOOKUP(B21,Standings!$A$3:$D$34,2)","v":4},{"$f":"VLOOKUP(B21,Standings!$A$3:$D$34,3)","v":8},{"$f":"VLOOKUP(B21,Standings!$A$3:$D$34,4)","v":0},null,"Jacksonville Jaguars",{"$f":"VLOOKUP(G21,Standings!$A$3:$D$34,2)","v":2},{"$f":"VLOOKUP(G21,Standings!$A$3:$D$34,3)","v":10},{"$f":"VLOOKUP(G21,Standings!$A$3:$D$34,4)","v":0}]
[]
[null,"NFC West","Win","Loss","Tie",null,"AFC West","Win","Loss","Tie"]
[null,"Seattle Seahawks",{"$f":"VLOOKUP(B24,Standings!$A$3:$D$34,2)","v":8},{"$f":"VLOOKUP(B24,Standings!$A$3:$D$34,3)","v":3},{"$f":"VLOOKUP(B24,Standings!$A$3:$D$34,4)","v":1},null,"Oakland Raiders",{"$f":"VLOOKUP(G24,Standings!$A$3:$D$34,2)","v":10},{"$f":"VLOOKUP(G24,Standings!$A$3:$D$34,3)","v":2},{"$f":"VLOOKUP(G24,Standings!$A$3:$D$34,4)","v":0}]
[null,"Arizona Cardinals",{"$f":"VLOOKUP(B25,Standings!$A$3:$D$34,2)","v":5},{"$f":"VLOOKUP(B25,Standings!$A$3:$D$34,3)","v":6},{"$f":"VLOOKUP(B25,Standings!$A$3:$D$34,4)","v":0},null,"Kansas City Chiefs",{"$f":"VLOOKUP(G25,Standings!$A$3:$D$34,2)","v":9},{"$f":"VLOOKUP(G25,Standings!$A$3:$D$34,3)","v":3},{"$f":"VLOOKUP(G25,Standings!$A$3:$D$34,4)","v":0}]
[null,"Los Angeles Rams",{"$f":"VLOOKUP(B26,Standings!$A$3:$D$34,2)","v":4},{"$f":"VLOOKUP(B26,Standings!$A$3:$D$34,3)","v":8},{"$f":"VLOOKUP(B26,Standings!$A$3:$D$34,4)","v":0},null,"Denver Broncos",{"$f":"VLOOKUP(G26,Standings!$A$3:$D$34,2)","v":8},{"$f":"VLOOKUP(G26,Standings!$A$3:$D$34,3)","v":4},{"$f":"VLOOKUP(G26,Standings!$A$3:$D$34,4)","v":0}]
[null,"San Francisco 49ers",{"$f":"VLOOKUP(B27,Standings!$A$3:$D$34,2)","v":1},{"$f":"VLOOKUP(B27,Standings!$A$3:$D$34,3)","v":11},{"$f":"VLOOKUP(B27,Standings!$A$3:$D$34,4)","v":0},null,"San Diego Chargers",{"$f":"VLOOKUP(G27,Standings!$A$3:$D$34,2)","v":5},{"$f":"VLOOKUP(G27,Standings!$A$3:$D$34,3)","v":7},{"$f":"VLOOKUP(G27,Standings!$A$3:$D$34,4)","v":0}]

{"sheet":"Game Simulator","index":1,"n_rows":18,"n_cols":19,"rows_kept":18,"cut":false,"hidden":false,"merged":[[1,0,1,3],[1,5,1,8],[1,10,1,13],[1,15,1,18]]}
[]
["Week 14",null,null,null,null,"Week 15",null,null,null,null,"Week 16",null,null,null,null,"Week 17"]
["Oakland Raiders","@","Kansas City Chiefs","Tie",null,"Los Angeles Rams ","@","Seattle Seahawks","Tie",null,"New York Giants","@","Philadelphia Eagles","Tie",null,"New Orleans Saints","@","Atlanta Falcons","Tie"]
["Pittsburgh Steelers","@","Buffalo Bills","Tie",null,"Miami Dolphins","@","New York Jets","Tie",null,"Miami Dolphins","@","Buffalo Bills","Tie",null,"Baltimore Ravens","@","Cincinnati Bengals","Tie"]
["Denver Broncos","@","Tennessee Titans","Tie",null,"Green Bay Packers","@","Chicago Bears","Tie",null,"Tampa Bay Buccaneers","@","New Orleans Saints","Tie",null,"New York Giants","@","Washington Redskins","Tie"]
["Washington Redskins","@","Philadelphia Eagles","Tie",null,"Tampa Bay Buccaneers","@","Dallas Cowboys","Tie",null,"New York Jets","@","New England Patriots","Tie",null,"Houston Texans","@","Tennessee Titans","Tie"]
["Arizona Cardinals","@","Miami Dolphins","Tie",null,"Jacksonville Jaguars","@","Houston Texans","Tie",null,"Tennessee Titans","@","Jacksonville Jaguars","Tie",null,"Carolina Panthers","@","Tampa Bay Buccaneers","Tie"]
["Minnesota Vikings","@","Jacksonville Jaguars","Tie",null,"Cleveland Browns","@","Buffalo Bills","Tie",null,"Minnesota Vikings","@","Green Bay Packers","Tie",null,"Green Bay Packers","@","Detroit Lions","Tie"]
["Houston Texans","@","Indianapolis Colts","Tie",null,"Philadelphia Eagles","@","Baltimore Ravens","Tie",null,"San Diego Chargers","@","Cleveland Browns","Tie",null,"Jacksonville Jaguars","@","Indianapolis Colts","Tie"]
["San Diego Chargers","@","Carolina Panthers","Tie",null,"Tennessee Titans","@","Kansas City Chiefs","Tie",null,"Washington Redskins","@","Chicago Bears","Tie",null,"New England Patriots","@","Miami Dolphins","Tie"]
["Cincinnati Bengals","@","Cleveland Browns","Tie",null,"Detroit Lions","@","New York Giants","Tie",null,"Atlanta Falcons","@","Carolina Panthers","Tie",null,"Chicago Bears","@","Minnesota Vikings","Tie"]
["Chigcago Bears","@","Detroit Lions","Tie",null,"Indianapolis Colts","@","Minnesota Vikings","Tie",null,"Indianapolis Colts","@","Oakland Raiders","Tie",null,"Buffalo Bills","@","New York Jets","Tie"]
["New York Jets","@","San Francisco 49ers","Tie",null,"New Orleans Saints","@","Arizona Cardinals","Tie",null,"Arizona Cardinals","@","Seattle Seahawks","Tie",null,"Dallas Cowboys","@","Philadelphia Eagles","Tie"]
["New Orleans Saints","@","Tampa Bay Buccaneers","Tie",null,"San Francisco 49ers","@","Atlanta Falcons","Tie",null,"San Francisco 49ers","@","Los Angeles Rams","Tie",null,"Cleveland Browns","@","Pittsburgh Steelers","Tie"]
["Atlanta Falcons","@","Los Angeles Rams","Tie",null,"New England Patriots","@","Denver Broncos","Tie",null,"Cincinnati Bengals","@","Houston Texans","Tie",null,"Arizona Cardinals","@","Los Angeles Rams","Tie"]
["Seattle Seahawks","@","Green Bay Packers","Tie",null,"Oakland Raiders","@","San Diego Chargers","Tie",null,"Baltimore Ravens","@","Pittsburgh Steelers","Tie",null,"Oakland Raiders","@","Denver Broncos","Tie"]
["Dallas Cowboys","@","New York Giants","Tie",null,"Pittsburgh Steelers","@","Cincinnati Bengals","Tie",null,"Denver Broncos","@","Kansas City Chiefs","Tie",null,"Kansas City Chiefs","@","San Diego Chargers","Tie"]
["Baltimore Ravens","@","New England Patriots","Tie",null,"Carolina Panthers","@","Washington Redskins","Tie",null,"Detroit Lions","@","Dallas Cowboys","Tie",null,"Seattle Seahawks","@","San Francisco 49ers","Tie"]

{"sheet":"Standings","index":2,"n_rows":34,"n_cols":14,"rows_kept":34,"cut":false,"hidden":true,"merged":[[23,5,23,8],[23,10,23,13],[0,0,0,3],[2,5,2,8],[7,5,7,8],[2,10,2,13],[7,10,7,13]]}
["Current Standings"]
["Name","Win","Loss","Tie",null,"Name","Win","Loss","Tie",null,"Name","Win","Loss","Tie"]
["Arizona Cardinals",5,6,0,null,"Divisional Leaders",null,null,null,null,"Divisional Leaders"]
["Atlanta Falcons",7,5,0,null,{"$f":"'Playoff Predictor'!B6","v":"Dallas Cowboys"},{"$f":"'Playoff Predictor'!$C$6","v":11},{"$f":"'Playoff Predictor'!D6","v":1},{"$f":"'Playoff Predictor'!E6","v":0},null,{"$f":"'Playoff Predictor'!G6","v":"New England Patriots"},{"$f":"'Playoff Predictor'!H6","v":10},{"$f":"'Playoff Predictor'!I6","v":2},{"$f":"'Playoff Predictor'!J6","v":0}]
["Baltimore Ravens",7,5,0,null,{"$f":"'Playoff Predictor'!B24","v":"Seattle Seahawks"},{"$f":"'Playoff Predictor'!C24","v":8},{"$f":"'Playoff Predictor'!D24","v":3},{"$f":"'Playoff Predictor'!E24","v":1},null,{"$f":"'Playoff Predictor'!G24","v":"Oakland Raiders"},{"$f":"'Playoff Predictor'!H24","v":10},{"$f":"'Playoff Predictor'!I24","v":2},{"$f":"'Playoff Predictor'!J24","v":0}]
["Buffalo Bills",6,6,0,null,{"$f":"'Playoff Predictor'!B12","v":"Detroit Lions"},{"$f":"'Playoff Predictor'!C12","v":8},{"$f":"'Playoff Predictor'!D12","v":4},{"$f":"'Playoff Predictor'!E12","v":0},null,{"$f":"'Playoff Predictor'!G12","v":"Baltimore Ravens"},{"$f":"'Playoff Predictor'!H12","v":7},{"$f":"'Playoff Predictor'!I12","v":5},{"$f":"'Playoff Predictor'!J12","v":0}]
["Carolina Panthers",4,8,0,null,{"$f":"'Playoff Predictor'!B18","v":"Atlanta Falcons"},{"$f":"'Playoff Predictor'!C18","v":7},{"$f":"'Playoff Predictor'!D18","v":5},{"$f":"'Playoff Predictor'!E18","v":0},null,{"$f":"'Playoff Predictor'!G18","v":"Houston Texans"},{"$f":"'Playoff Predictor'!H18","v":6},{"$f":"'Playoff Predictor'!I18","v":6},{"$f":"'Playoff Predictor'!J18","v":0}]
["Chicago Bears",3,9,0,null,"Wild Card Hunt",null,null,null,null,"Wild Card Hunt"]
["Cincinnati Bengals",4,7,1,null,{"$f":"'Playoff Predictor'!B7","v":"New York Giants"},{"$f":"'Playoff Predictor'!C7","v":8},{"$f":"'Playoff Predictor'!D7","v":4},{"$f":"'Playoff Predictor'!E7","v":0},null,{"$f":"'Playoff Predictor'!G25","v":"Kansas City Chiefs"},{"$f":"'Playoff Predictor'!H25","v":9},{"$f":"'Playoff Predictor'!I25","v":3},{"$f":"'Playoff Predictor'!J25","v":0}]
["Cleveland Browns",0,12,0,null,{"$f":"'Playoff Predictor'!B19","v":"Tampa Bay Buccaneers"},{"$f":"'Playoff Predictor'!C19","v":7},{"$f":"'Playoff Predictor'!D19","v":5},{"$f":"'Playoff Predictor'!E19","v":0},null,{"$f":"'Playoff Predictor'!G26","v":"Denver Broncos"},{"$f":"'Playoff Predictor'!H26","v":8},{"$f":"'Playoff Predictor'!I26","v":4},{"$f":"'Playoff Predictor'!J26","v":0}]
["Dallas Cowboys",11,1,0,null,{"$f":"'Playoff Predictor'!B8","v":"Washington Redskins"},{"$f":"'Playoff Predictor'!C8","v":6},{"$f":"'Playoff Predictor'!D8","v":5},{"$f":"'Playoff Predictor'!E8","v":1},null,{"$f":"'Playoff Predictor'!G7","v":"Miami Dolphins"},{"$f":"'Playoff Predictor'!H7","v":7},{"$f":"'Playoff Predictor'!I7","v":5},{"$f":"'Playoff Predictor'!J7","v":0}]
["Denver Broncos",8,4,0,null,{"$f":"'Playoff Predictor'!B13","v":"Green Bay Packers"},{"$f":"'Playoff Predictor'!C13","v":6},{"$f":"'Playoff Predictor'!D13","v":6},{"$f":"'Playoff Predictor'!E13","v":0},null,{"$f":"'Playoff Predictor'!G8","v":"Buffalo Bills"},{"$f":"'Playoff Predictor'!H8","v":6},{"$f":"'Playoff Predictor'!I8","v":6},{"$f":"'Playoff Predictor'!J8","v":0}]
["Detroit Lions",8,4,0,null,{"$f":"'Playoff Predictor'!B14","v":"Minnesota Vikings"},{"$f":"'Playoff Predictor'!C14","v":6},{"$f":"'Playoff Predictor'!D14","v":6},{"$f":"'Playoff Predictor'!E14","v":0},null,{"$f":"'Playoff Predictor'!G19","v":"Indianapolis Colts"},{"$f":"'Playoff Predictor'!H19","v":6},{"$f":"'Playoff Predictor'!I19","v":6},{"$f":"'Playoff Predictor'!J19","v":0}]
["Green Bay Packers",6,6,0,null,{"$f":"'Playoff Predictor'!B25","v":"Arizona Cardinals"},{"$f":"'Playoff Predictor'!C25","v":5},{"$f":"'Playoff Predictor'!D25","v":6},{"$f":"'Playoff Predictor'!E25","v":0},null,{"$f":"'Playoff Predictor'!G20","v":"Tennessee Titans"},{"$f":"'Playoff Predictor'!H20","v":6},{"$f":"'Playoff Predictor'!I20","v":6},{"$f":"'Playoff Predictor'!J20","v":0}]
["Houston Texans",6,6,0,null,{"$f":"'Playoff Predictor'!B20","v":"New Orleans Saints"},{"$f":"'Playoff Predictor'!C20","v":5},{"$f":"'Playoff Predictor'!D20","v":7},{"$f":"'Playoff Predictor'!E20","v":0},null,{"$f":"'Playoff Predictor'!G13","v":"Pittsburg Steelers"},{"$f":"'Playoff Predictor'!H13","v":5},{"$f":"'Playoff Predictor'!I13","v":7},{"$f":"'Playoff Predictor'!J13","v":0}]
["Indianapolis Colts",6,6,0,null,{"$f":"'Playoff Predictor'!B9","v":"Philadelphia Eagles"},{"$f":"'Playoff Predictor'!C9","v":5},{"$f":"'Playoff Predictor'!D9","v":7},{"$f":"'Playoff Predictor'!E9","v":0},null,{"$f":"'Playoff Predictor'!G27","v":"San Diego Chargers"},{"$f":"'Playoff Predictor'!H27","v":5},{"$f":"'Playoff Predictor'!I27","v":7},{"$f":"'Playoff Predictor'!J27","v":0}]
["Jacksonville Jaguars",2,10,0,null,{"$f":"'Playoff Predictor'!B21","v":"Carolina Panthers"},{"$f":"'Playoff Predictor'!C21","v":4},{"$f":"'Playoff Predictor'!D21","v":8},{"$f":"'Playoff Predictor'!E21","v":0},null,{"$f":"'Playoff Predictor'!G14","v":"Cinncinatti Bengals"},{"$f":"'Playoff Predictor'!H14","v":4},{"$f":"'Playoff Predictor'!I14","v":7},{"$f":"'Playoff Predictor'!J14","v":1}]
["Kansas City Chiefs",9,3,0,null,{"$f":"'Playoff Predictor'!B26","v":"Los Angeles Rams"},{"$f":"'Playoff Predictor'!C26","v":4},{"$f":"'Playoff Predictor'!D26","v":8},{"$f":"'Playoff Predictor'!E26","v":0},null,{"$f":"'Playoff Predictor'!G9","v":"New York Jets"},{"$f":"'Playoff Predictor'!H9","v":3},{"$f":"'Playoff Predictor'!I9","v":9},{"$f":"'Playoff Predictor'!J9","v":0}]
["Los Angeles Rams",4,8,0,null,{"$f":"'Playoff Predictor'!B15","v":"Chicago Bears"},{"$f":"'Playoff Predictor'!C15","v":3},{"$f":"'Playoff Predictor'!D15","v":9},{"$f":"'Playoff Predictor'!E15","v":0},null,{"$f":"'Playoff Predictor'!G21","v":"Jacksonville Jaguars"},{"$f":"'Playoff Predictor'!H21","v":2},{"$f":"'Playoff Predictor'!I21","v":10},{"$f":"'Playoff Predictor'!J21","v":0}]
["Miami Dolphins",7,5,0,null,{"$f":"'Playoff Predictor'!B27","v":"San Francisco 49ers"},{"$f":"'Playoff Predictor'!C27","v":1},{"$f":"'Playoff Predictor'!D27","v":11},{"$f":"'Playoff Predictor'!E27","v":0},null,{"$f":"'Playoff Predictor'!G15","v":"Cleveland Browns"},{"$f":"'Playoff Predictor'!H15","v":0},{"$f":"'Playoff Predictor'!I15","v":12},{"$f":"'Playoff Predictor'!J15","v":0}]
["Minnesota Vikings",6,6,0]
["New England Patriots",10,2,0]
["New Orleans Saints",5,7,0]
["New York Giants",8,4,0,null,"Seeding",null,null,null,null,"Seeding"]
["New York Jets",3,9,0,1,{"$f":"F4","v":"Dallas Cowboys"},11,1,0,1,{"$f":"K4","v":"New England Patriots"},10,2,0]
["Oakland Raiders",10,2,0,2,"Seattle Seahawks",8,3,1,2,"Oakland Raiders",10,2,0]
["Philadelphia Eagles",5,7,0,3,"Detroit Lions",8,4,0,3,"Baltimore Ravens",7,5,0]
["Pittsburgh Steelers",7,5,0,4,"Atlanta Falcons",7,5,0,4,"Houston Texans",6,6,0]
["San Diego Chargers",5,7,0,5,{"$f":"F9","v":"New York Giants"},8,4,0,5,{"$f":"K9","v":"Kansas City Chiefs"},9,3,0]
["San Francisco 49ers",1,11,0,6,"Tampa Bay Buccaneers",7,5,0,6,"Denver Broncos",8,4,0]
["Seattle Seahawks",8,3,1]
["Tampa Bay Buccaneers",7,5,0]
["Tennessee Titans",6,6,0]
["Washington Redskins",6,5,1]

{"sheet":"Help","index":3,"n_rows":0,"n_cols":0,"rows_kept":0,"cut":false,"hidden":false,"merged":[]}